bitfinex/quotes_ETHUSD_20251021
["timestamp","ask_amount","ask_price","bid_price","bid_amount"]
[1761020560118,0.001,3881.8,3881.7,2.57619084]
[1761020560420,0.001,3881.8,3881.3,0.4519]
[1761020560820,0.001,3881.8,3881.7,2.57619084]
[1761020561120,0.001,3881.8,3881.6,2.57623749]
[1761020561321,0.001,3881.8,3881.7,2.57619084]
[1761020562417,0.001,3881.8,3881.4,0.39329]
[1761020562418,0.001,3881.8,3881.4,0.52209]
[1761020562796,0.001,3881.8,3881.5,2.57627397]
[1761020563124,0.001,3881.8,3881.0,0.002]
[1761020563426,0.1288,3881.5,3881.4,0.002]
[1761020568696,0.5617,3881.5,3881.4,0.002]
[1761020569736,0.1288,3881.5,3881.4,0.002]
[1761020572716,0.5617,3881.5,3881.4,0.002]
[1761020573926,0.1288,3881.5,3881.4,0.002]
[1761020574127,0.5617,3881.5,3881.4,0.002]
[1761020575611,0.1288,3881.5,3881.4,0.002]
[1761020576332,0.5617,3881.5,3881.4,0.002]
[1761020576538,0.1288,3881.5,3881.4,0.002]
[1761020577060,0.5617,3881.5,3881.4,0.002]
[1761020577200,0.5617,3881.5,3881.0,0.002]
[1761020577201,13.52995311,3881.1,3881.0,0.002]
[1761020577404,11.40538911,3881.1,3881.0,0.002]
[1761020577746,7.30721411,3881.1,3881.0,0.002]
[1761020578345,10.91526511,3881.1,3881.0,0.002]
[1761020578510,11.23522459,3881.1,3881.0,0.002]
[1761020579099,11.74210459,3881.1,3881.0,0.002]
[1761020579315,35.56432859,3881.1,3881.0,0.002]
[1761020579533,33.47672959,3881.1,3881.0,0.002]
[1761020579734,20.13080759,3881.1,3881.0,0.002]
[1761020579937,19.87713959,3881.1,3881.0,0.002]
[1761020580246,15.86671659,3881.1,3881.0,0.002]
[1761020580447,15.47643359,3881.1,3881.0,0.002]
[1761020580629,7.13930111,3881.1,3881.0,0.002]
[1761020580811,7.33418111,3881.1,3881.0,0.002]
[1761020581011,8.05837715,3881.1,3881.0,0.002]
[1761020581346,35.96856515,3881.1,3881.0,0.002]
[1761020581528,27.27316715,3881.1,3881.0,0.002]
[1761020581840,27.26190137,3881.1,3881.0,0.002]
[1761020582440,33.07852937,3881.1,3881.0,0.002]
[1761020582953,26.29084469,3880.7,3880.6,0.002]
[1761020583240,28.05855625,3880.7,3880.6,0.002]
[1761020583443,24.1319445,3880.5,3880.4,1e-08]
[1761020583617,26.19712806,3880.5,3880.4,1e-08]
[1761020583819,26.65512806,3880.5,3880.4,1e-08]
[1761020584211,26.78433681,3880.5,3880.4,1e-08]
[1761020584915,29.77607113,3880.5,3880.4,1e-08]
[1761020585315,29.50133681,3880.5,3880.4,1e-08]
[1761020586154,29.75527512,3880.5,3880.4,1e-08]
[1761020587347,13.626945,3878.3,3876.8,0.0585]
[1761020587532,0.25393831,3880.4,3877.2,0.4611]
[1761020587533,1.728,3878.4,3877.2,0.4611]
[1761020587735,1.728,3878.6,3877.2,0.4611]
[1761020587938,1.728,3878.8,3877.2,0.4611]
[1761020588221,2.57752019,3879.7,3878.7,0.2215]
[1761020588454,2.57821611,3878.7,3877.2,0.4611]
[1761020588634,1.76022812,3878.6,3877.3,0.4611]
[1761020588948,0.25393831,3880.4,3877.3,0.4611]
[1761020588949,0.03222563,3878.9,3878.1,2.57856984]
[1761020589261,0.458,3880.3,3877.3,0.4611]
[1761020589470,3.03518311,3880.3,3878.9,2.57804204]
[1761020589614,0.458,3881.4,3879.9,0.2215]
[1761020589817,0.2324,3881.2,3879.9,0.6826]
[1761020590041,0.2324,3881.2,3880.0,2.57731958]
[1761020590042,0.03220819,3881.0,3880.0,2.57731958]
[1761020590234,0.33818356,3881.8,3880.4,2.5770255]
[1761020590235,0.2324,3881.7,3880.4,2.5770255]
[1761020590456,0.40422522,3881.1,3880.5,0.4611]
[1761020590762,0.001,3881.8,3880.8,2.57674645]
[1761020590915,0.001,3881.8,3881.4,0.2215]
[1761020590916,0.03220238,3881.7,3881.4,0.2215]
[1761020591115,0.001,3881.8,3881.4,0.2215]
[1761020591368,0.459,3881.5,3880.1,0.4611]
[1761020591652,1.728,3881.0,3879.9,0.2215]
[1761020591945,0.03220902,3880.9,3879.9,0.2215]
[1761020592115,1.728,3880.8,3879.9,0.2215]
[1761020592317,0.03221068,3880.7,3879.9,0.2215]
[1761020592562,0.03221068,3880.7,3879.9,2.79886142]
[1761020592763,0.03221068,3880.7,3879.9,0.54749614]
[1761020593261,0.03221068,3880.7,3879.9,0.2215]
[1761020593459,4.79509446,3880.7,3879.4,2.57766476]
[1761020593616,1.728,3879.9,3878.9,0.0585]
[1761020593816,1.728,3880.3,3878.9,0.0585]
[1761020594042,9.371441,3880.4,3878.9,3.0976423]
[1761020594248,0.79518356,3880.6,3879.0,2.57797354]
[1761020594249,4.3051378,3880.3,3879.0,2.57797354]
[1761020594822,2.57737211,3880.0,3878.9,0.0585]
[1761020595024,0.03221732,3879.9,3878.9,0.0585]
[1761020595374,0.26461732,3879.9,3878.9,0.0585]
[1761020595757,0.40426261,3880.8,3879.0,0.02577984]
[1761020595941,0.40426261,3880.8,3880.7,0.2215]
[1761020596441,0.40426261,3880.8,3880.7,3.24585469]
[1761020596754,0.40426261,3880.8,3880.1,0.1107]
[1761020596959,0.03221068,3880.7,3880.0,0.1107]
[1761020597452,0.03221068,3880.7,3879.6,0.1107]
[1761020597453,0.1288,3880.0,3879.6,0.1107]
[1761020597622,0.40426261,3880.8,3880.6,0.1107]
[1761020598158,0.40426261,3880.8,3880.2,0.1107]
[1761020598348,0.1288,3880.1,3879.6,0.1107]
[1761020598550,0.1288,3880.1,3879.9,2.57737474]
[1761020598756,0.1288,3880.1,3879.6,2.68827769]
[1761020598757,0.1288,3880.1,3879.7,0.4475]
[1761020598953,0.1288,3880.1,3879.9,2.57733772]
[1761020599138,0.03221068,3880.7,3879.8,2.57739755]
[1761020599742,0.1288,3879.8,3879.7,2.90392338]
[1761020600241,0.1288,3879.8,3879.2,0.1288]
[1761020600454,0.1288,3879.6,3879.3,0.1107]
[1761020600764,0.001,3880.4,3879.4,2.57771085]
[1761020601165,0.1288,3879.4,3879.3,0.1107]
[1761020601868,0.1288,3879.4,3879.3,3.13598465]
[1761020602238,0.1288,3879.4,3879.3,0.1107]
[1761020602763,0.1288,3879.4,3879.1,0.1107]
[1761020602942,0.001,3880.4,3879.1,0.1107]
[1761020603147,0.1288,3879.4,3879.3,2.57778465]
[1761020603460,0.1288,3879.4,3879.3,3.14917019]
[1761020603663,0.1288,3879.4,3879.3,3.59667019]
[1761020603864,0.1288,3879.4,3879.3,1.01888554]
[1761020604056,0.1288,3879.4,3879.1,0.1107]
[1761020604438,0.86925731,3880.8,3879.2,0.4475]
[1761020604632,0.1288,3879.4,3879.3,2.57778465]
[1761020604863,1.728,3880.3,3879.5,2.57764028]
[1761020605063,1.729,3880.4,3879.5,0.56029249]
[1761020605268,0.001,3880.4,3879.6,3.02508531]
[1761020605466,0.001,3880.4,3879.6,0.4475]
[1761020605638,0.001,3880.4,3879.8,2.57744883]
[1761020605840,1.729,3880.4,3879.1,0.1107]
[1761020606034,1.728,3880.2,3879.1,0.1107]
[1761020606368,0.001,3880.4,3879.2,0.85577]
[1761020606666,0.40430202,3880.3,3879.7,2.57751014]
[1761020606864,0.40430202,3880.3,3879.2,0.4475]
[1761020606865,0.001,3880.4,3879.4,2.57766925]
[1761020607067,0.40429686,3880.2,3879.1,0.1107]
[1761020607270,0.40429686,3880.2,3879.5,0.4475]
[1761020607471,0.001,3880.4,3880.1,0.1107]
[1761020608061,0.001,3880.4,3880.2,0.4475]
[1761020608352,0.001,3880.4,3880.1,0.1107]
[1761020608572,0.001,3880.4,3879.3,0.4475]
[1761020608573,0.001,3880.4,3879.7,2.57745611]
[1761020608748,0.001,3880.4,3879.8,2.57745004]
[1761020608950,0.001,3880.4,3879.3,0.4475]
[1761020609152,0.001,3880.4,3880.3,0.1107]
[1761020609472,0.001,3880.4,3879.9,2.57737394]
[1761020609671,0.001,3880.4,3880.0,0.51548471]
[1761020609838,0.001,3880.4,3879.4,0.4475]
[1761020610041,0.001,3880.4,3879.6,2.57758008]
[1761020610673,0.001,3880.4,3879.1,0.5548]
[1761020610860,0.001,3880.4,3879.4,2.57771014]
[1761020610861,2.57712106,3880.3,3879.4,2.57771014]
[1761020611059,0.03221483,3880.2,3879.1,3.13267637]
[1761020611386,2.57713839,3880.3,3879.4,2.57770912]
[1761020611578,0.001,3880.4,3879.6,2.57757687]
[1761020611752,0.001,3880.4,3879.2,0.31911764]
[1761020611956,0.001,3880.4,3879.6,3.02165144]
[1761020612281,0.001,3880.4,3879.8,2.57742878]
[1761020612975,0.40520029,3880.4,3879.7,2.57750748]
[1761020613163,0.40520029,3880.4,3879.6,0.4441]
[1761020613164,0.032214,3880.3,3879.4,2.57766565]
[1761020613362,2.57721744,3880.2,3879.3,2.57775087]
[1761020613565,1.728,3880.0,3879.4,0.52663365]
[1761020613750,0.03221732,3879.9,3879.4,0.52663365]
[1761020613952,0.03221483,3880.2,3879.1,0.1107]
[1761020614253,1.728,3880.3,3879.1,0.5548]
[1761020614563,2.13320029,3880.4,3879.5,2.57758986]
[1761020614769,0.1288,3879.5,3879.2,2.57778769]
[1761020614970,0.1288,3879.5,3879.4,2.57767324]
[1761020615345,0.1288,3879.5,3879.4,2.5777182]
[1761020615546,0.1288,3879.5,3879.4,3.0218182]
[1761020615748,0.032214,3880.3,3879.3,2.8909883]
[1761020615991,1.728,3880.1,3879.3,2.8909883]
[1761020616148,0.03221649,3880.0,3879.3,0.31325877]
[1761020616545,2.7916477,3879.9,3879.1,0.1107]
[1761020616853,0.03221815,3879.8,3879.1,0.1107]
[1761020617265,1.76021815,3879.8,3879.1,0.1107]
[1761020617662,2.60970441,3879.8,3879.1,0.1107]
[1761020617906,0.03221815,3879.8,3879.1,0.1107]
[1761020618181,0.03221815,3879.8,3879.1,0.2747242]
[1761020618182,0.2142,3879.7,3879.1,0.2747242]
[1761020618387,2.5771737,3880.3,3879.4,2.57770776]
[1761020618686,0.40427522,3880.6,3879.2,0.5548]
[1761020618983,1.728,3880.0,3879.2,2.68854512]
[1761020619187,0.2142,3879.3,3877.7,0.4441]
[1761020619393,0.03222313,3879.2,3877.7,0.4441]
[1761020619574,0.03222313,3879.2,3878.7,0.002]
[1761020619889,3.03102847,3879.1,3878.7,0.002]
[1761020620090,0.0322248,3879.0,3878.7,0.002]
[1761020620290,1.76022563,3878.9,3878.7,0.002]
[1761020620497,0.03222563,3878.9,3878.7,0.002]
[1761020622577,2.79199764,3879.3,3878.7,0.002]
[1761020622578,2.79203345,3879.3,3878.7,0.002]
[1761020622783,2.61012969,3879.2,3878.7,0.002]
[1761020622979,1.728,3879.1,3878.7,0.002]
[1761020623292,0.2142,3879.3,3878.7,0.002]
[1761020623458,0.03222313,3879.2,3878.7,0.002]
[1761020623797,1.76022313,3879.2,3878.7,0.002]
[1761020624095,0.03222313,3879.2,3878.7,0.002]
[1761020624783,1.728,3879.0,3878.7,0.002]
[1761020624991,0.03222563,3878.9,3878.7,0.002]
[1761020625358,4.30611694,3878.8,3878.7,0.002]
[1761020625876,4.75921694,3878.8,3878.7,0.002]
[1761020626485,2.1811,3878.8,3878.7,0.002]
[1761020627950,1.728,3878.8,3878.7,0.002]
[1761020629761,1.728,3878.8,3878.7,2.58018341]
[1761020629968,1.728,3878.8,3878.7,3.58454358]
[1761020630278,0.61853412,3879.6,3878.7,1.00636017]
[1761020630279,0.40438851,3879.4,3878.7,1.00636017]
[1761020630457,0.1288,3879.0,3878.9,2.57805047]
[1761020630657,0.1288,3879.0,3878.7,0.002]
[1761020630891,0.1288,3879.0,3878.8,2.57806414]
[1761020631080,0.1288,3879.0,3878.7,2.58017229]
[1761020631282,0.40438851,3879.4,3879.3,2.57778465]
[1761020631460,0.40433412,3879.6,3879.4,2.57770872]
[1761020631786,0.2142,3880.3,3879.5,2.57765175]
[1761020632293,0.1288,3879.5,3879.4,2.57771067]
[1761020632599,0.001,3880.4,3879.9,2.57736352]
[1761020632767,0.001,3880.4,3879.8,2.57743173]
[1761020632967,0.1288,3879.8,3879.7,2.5775106]
[1761020633278,0.1288,3879.8,3879.7,2.87967166]
[1761020633589,0.1288,3879.8,3879.7,3.32377166]
[1761020634924,0.1288,3879.8,3879.7,2.57751888]
[1761020635774,0.1288,3879.8,3879.6,2.5775433]
[1761020636086,0.001,3880.4,3879.4,0.4441]
[1761020636269,0.001,3880.4,3879.5,3.04751863]
[1761020636475,0.1288,3879.6,3879.5,3.02174212]
[1761020636664,0.001,3880.4,3879.9,2.57736415]
[1761020636862,0.1288,3879.9,3879.1,0.4441]
[1761020637066,0.1288,3879.9,3879.7,2.57746684]
[1761020637262,0.1288,3879.9,3879.8,2.57745244]
[1761020637464,0.001,3880.4,3880.2,2.57713158]
[1761020637784,0.001,3880.4,3880.3,3.19052032]
[1761020638082,0.001,3880.4,3880.3,0.1693]
[1761020638605,0.001,3880.4,3879.9,3.457]
[1761020638800,0.001,3880.4,3880.1,2.57720459]
[1761020638966,0.001,3880.4,3880.2,2.57715706]
[1761020639699,0.001,3880.4,3880.1,0.1693]
[1761020640004,0.001,3880.4,3880.3,2.57712032]
[1761020641194,0.001,3880.4,3880.3,0.31905203]
[1761020641404,0.001,3880.4,3880.3,3.01422032]
[1761020641572,0.001,3880.4,3880.3,3.52110032]
[1761020641983,0.001,3880.8,3880.7,3.08373469]
[1761020642185,0.001,3881.2,3881.1,3.08346911]
[1761020642502,0.001,3881.2,3881.1,2.57658911]
[1761020642806,0.001,3881.2,3881.1,6.59062556]
[1761020643301,0.001,3881.2,3881.1,7.02772556]
[1761020643510,0.001,3881.2,3879.7,2.57749645]
[1761020643511,2.57690376,3880.7,3879.1,0.4371]
[1761020643723,0.03221151,3880.6,3879.1,0.4371]
[1761020643885,2.57693485,3880.6,3879.3,2.57778465]
[1761020644077,2.82572179,3880.5,3879.5,2.57760042]
[1761020644402,3.25462179,3880.5,3879.6,2.57756463]
[1761020644865,3.25462179,3880.5,3879.4,0.31255847]
[1761020644866,0.4289,3880.4,3879.4,0.31255847]
[1761020645070,0.001,3881.2,3879.4,0.31255847]
[1761020645071,1.728,3880.7,3879.5,2.57765175]
[1761020645296,1.728,3880.5,3879.7,2.57751771]
[1761020645501,1.728,3880.5,3879.8,2.57744834]
[1761020645670,1.728,3880.5,3879.7,2.57750272]
[1761020646070,1.728,3880.7,3879.8,2.57745135]
[1761020646287,2.57691578,3880.7,3879.8,0.36926824]
[1761020646500,1.728,3880.6,3879.8,2.94666356]
[1761020646701,2.57737055,3881.5,3879.8,2.94666356]
[1761020646702,0.4289,3881.4,3879.9,3.8911]
[1761020646902,0.4289,3881.4,3880.6,0.1673]
[1761020647103,4.30537031,3881.5,3880.6,2.7442133]
[1761020647401,0.1288,3881.1,3880.8,2.57678829]
[1761020647603,0.1288,3881.1,3880.9,2.57672189]
[1761020647806,0.1288,3881.1,3881.0,2.5766555]
[1761020648906,0.1298,3881.5,3881.1,2.57658911]
[1761020649104,0.001,3881.5,3881.1,3.52056911]
[1761020649304,0.001,3881.5,3881.1,4.48847157]
[1761020650811,0.001,3881.5,3881.1,4.41990246]
[1761020650976,0.1288,3881.4,3881.1,3.452]
[1761020652599,0.1288,3881.4,3880.7,0.40322133]
[1761020652920,2.6095533,3881.5,3880.7,0.40322133]
[1761020652921,0.1288,3881.1,3881.0,2.5766555]
[1761020653318,0.1288,3881.1,3881.0,3.0137555]
[1761020653627,0.001,3881.5,3881.1,3.08346911]
[1761020653777,0.001,3881.5,3881.1,6.99691395]
[1761020653978,0.001,3881.5,3881.1,6.97156911]
[1761020654186,0.001,3881.5,3881.1,7.93927157]
[1761020655008,0.001,3881.5,3881.1,6.99529157]
[1761020655182,0.001,3881.5,3881.1,7.43239157]
[1761020655383,0.001,3881.5,3881.1,7.93927157]
[1761020655786,0.001,3881.5,3881.1,7.43239157]
[1761020656182,0.001,3881.5,3881.1,7.50217157]
[1761020656381,0.001,3881.5,3881.1,7.94207157]
[1761020659317,0.001,3881.5,3881.1,7.43519157]
[1761020659718,0.001,3881.5,3881.1,7.50217157]
[1761020660023,0.001,3881.5,3881.1,7.94207157]
[1761020660607,0.001,3881.5,3881.1,3.54429157]
[1761020660940,0.001,3881.5,3881.1,6.02458911]
[1761020661147,0.001,3881.5,3881.1,6.46448911]
[1761020661509,0.001,3881.5,3881.1,6.97136911]
[1761020663040,0.001,3881.5,3881.1,6.53146911]
[1761020663742,0.001,3881.5,3881.1,6.97136911]
[1761020663947,0.001,3881.5,3881.1,7.92637406]
[1761020665044,0.001,3881.5,3881.1,8.05517406]
[1761020672420,0.001,3881.8,3881.7,3.08307084]
[1761020672617,1e-08,3882.0,3881.9,3.08293811]
[1761020673015,1e-08,3882.0,3881.9,3.52073811]
[1761020673224,1e-08,3882.0,3881.9,4.47482437]
[1761020674344,1e-08,3882.0,3881.9,6.22858495]
[1761020674567,0.001,3884.1,3882.9,3.08227467]
[1761020674738,0.001,3884.1,3882.9,6.52627467]
[1761020675069,0.001,3884.1,3882.9,6.96407467]
[1761020675235,0.4397,3883.8,3882.9,7.48023006]
[1761020675430,0.4397,3883.8,3882.9,4.03623006]
[1761020675637,0.4397,3883.8,3882.9,7.47923006]
[1761020676063,0.2262,3883.9,3882.9,7.91703006]
[1761020676567,0.4397,3883.8,3882.9,7.47923006]
[1761020676767,0.2262,3883.9,3882.9,7.47923006]
[1761020677069,0.2262,3883.9,3882.9,7.91703006]
[1761020679071,0.4407,3883.7,3882.9,7.47923006]
[1761020679859,0.001,3883.7,3882.9,7.91703006]
[1761020680672,0.001,3883.7,3882.9,7.47923006]
[1761020681473,0.001,3883.7,3882.9,7.91703006]
[1761020681641,0.001,3883.7,3882.9,7.47923006]
[1761020681841,0.4407,3883.7,3882.9,7.47923006]
[1761020683087,0.03218663,3883.6,3881.9,0.95408626]
[1761020683372,1.729,3883.7,3882.0,3.8778]
[1761020683587,0.4397,3883.4,3882.9,2.57539467]
[1761020683755,0.4397,3883.4,3882.9,6.01539467]
[1761020683953,0.4407,3883.0,3882.9,3.44]
[1761020684260,0.4407,3883.0,3880.7,2.57681578]
[1761020684472,1.98639243,3882.9,3881.4,2.57634352]
[1761020684772,2.57572806,3882.4,3881.6,2.57625596]
[1761020684949,1.728,3882.1,3881.7,3.439]
[1761020685147,0.2262,3881.8,3881.6,3.439]
[1761020685661,0.4397,3881.7,3881.6,3.439]
[1761020686760,0.2262,3881.8,3881.6,3.7829]
[1761020686959,0.4397,3881.7,3881.6,3.7829]
[1761020687174,0.4397,3881.7,3881.6,3.439]
[1761020688173,0.2262,3881.8,3881.6,3.439]
[1761020688880,0.6659,3881.8,3881.6,3.439]
[1761020689292,0.2262,3881.8,3881.6,3.439]
[1761020689601,0.6659,3881.8,3881.6,3.439]
[1761020690307,0.40406256,3882.5,3881.6,4.04053896]
[1761020690522,0.4397,3882.4,3881.6,0.60153896]
[1761020690805,0.2262,3881.7,3880.9,2.57672189]
[1761020690962,0.2262,3881.7,3881.6,2.57625721]
[1761020691168,0.2262,3881.7,3881.6,3.438]
[1761020691477,0.2262,3882.0,3881.7,2.57618177]
[1761020691665,0.2262,3882.0,3881.7,0.61125384]
[1761020692005,0.2262,3882.0,3881.7,3.18742827]
[1761020692295,0.4397,3882.3,3881.8,2.5761141]
[1761020692503,0.4397,3882.3,3881.6,3.44]
[1761020692790,0.128,3882.1,3881.6,6.0162452]
[1761020693270,0.4397,3882.0,3881.6,6.0162452]
[1761020693669,0.2262,3881.9,3881.6,6.0162452]
[1761020694096,0.2262,3881.9,3881.7,2.57617949]
[1761020695091,0.6659,3881.9,3881.6,3.44]
[1761020695465,0.6659,3881.9,3881.7,2.57613286]
[1761020695659,0.2262,3881.9,3881.7,3.33309265]
[1761020695912,0.4397,3881.8,3881.6,0.002]
[1761020696068,0.4397,3881.8,3881.7,3.437]
[1761020696415,0.4397,3881.8,3881.6,0.002]
[1761020698674,0.2262,3881.9,3881.6,0.002]
[1761020698889,0.2262,3881.9,3881.6,0.8610705]
[1761020699077,0.4397,3881.8,3881.6,0.002]
[1761020699478,0.4397,3882.2,3881.6,0.002]
[1761020699703,0.001,3882.6,3882.2,2.57585349]
[1761020699879,0.001,3882.6,3882.5,2.57566001]
[1761020700411,0.001,3882.6,3882.5,6.95634001]
[1761020700653,0.001,3882.6,3882.5,7.90955051]
[1761020700934,0.001,3882.6,3882.5,7.90175051]
[1761020701334,0.001,3882.6,3882.5,4.03575051]
[1761020701626,0.001,3882.6,3882.5,7.90075051]
[1761020702416,0.001,3882.6,3882.5,9.62875051]
[1761020704697,0.001,3882.6,3882.5,6.19375051]
[1761020704902,0.001,3882.6,3882.5,8.69087051]
[1761020705152,0.001,3882.6,3882.5,3.434]
[1761020705303,0.4569,3882.6,3882.5,3.434]
[1761020705706,3.03254812,3882.6,3882.1,3.434]
[1761020705900,0.4569,3882.6,3882.1,3.434]
[1761020706149,0.4559,3882.5,3882.1,3.434]
[1761020706320,0.4559,3882.5,3881.6,0.002]
[1761020706526,0.2333,3881.7,3881.6,0.014]
[1761020706824,0.2333,3881.7,3881.6,0.002]
[1761020707036,0.2333,3881.7,3880.4,0.002]
[1761020707037,2.57631049,3881.6,3880.8,0.118]
[1761020707200,0.4559,3881.5,3880.8,0.118]
[1761020707406,0.2333,3882.2,3881.3,2.305]
[1761020707723,0.4559,3882.8,3882.2,2.57585904]
[1761020707724,0.128,3882.3,3882.2,2.57585904]
[1761020707904,0.2333,3882.5,3882.4,2.57572635]
[1761020708113,0.4559,3882.4,3880.4,0.002]
[1761020708312,0.4559,3882.4,3880.5,0.004]
[1761020708512,2.57612324,3881.9,3880.5,0.004]
[1761020708732,2.57600662,3882.0,3881.0,2.57659762]
[1761020709018,2.57600662,3882.0,3880.8,0.002]
[1761020709019,2.57612447,3881.8,3880.8,0.002]
[1761020709220,2.57619698,3881.7,3880.8,0.002]
[1761020709423,0.4559,3881.8,3880.8,2.57878209]
[1761020709625,0.4559,3881.8,3880.8,0.002]
[1761020709849,3.03203796,3881.8,3880.8,0.002]
[1761020710142,3.03205125,3881.8,3880.9,2.57670374]
[1761020710341,0.4559,3881.7,3880.8,0.002]
[1761020710649,0.4559,3882.3,3881.2,0.50888]
[1761020710818,1.728,3882.2,3881.3,2.57640603]
[1761020711145,0.4559,3882.4,3881.6,2.5762028]
[1761020711351,0.4559,3882.4,3881.7,2.5761872]
[1761020711650,0.4559,3882.4,3881.7,3.432]
[1761020711867,0.4559,3882.4,3881.7,6.00817366]
[1761020712042,0.4559,3882.4,3881.7,3.432]
[1761020712417,0.4559,3882.4,3881.7,6.00816454]
[1761020712618,0.4559,3882.4,3881.7,4.29045533]
[1761020712842,0.4559,3882.4,3882.0,2.57599128]
[1761020713065,0.4559,3882.4,3881.7,3.432]
[1761020713266,1.728,3882.2,3881.2,0.002]
[1761020713566,0.4559,3882.1,3881.2,0.002]
[1761020713762,2.57600077,3882.0,3881.2,0.002]
[1761020713924,1.728,3881.9,3881.2,0.002]
[1761020714124,0.4559,3881.9,3881.2,0.002]
[1761020714375,2.1839,3881.8,3881.2,0.002]
[1761020714515,0.4559,3881.8,3881.2,0.002]
[1761020715118,3.0320389,3881.8,3881.2,0.002]
[1761020715445,0.4559,3881.8,3881.2,0.002]
[1761020716115,0.03219906,3882.1,3881.2,0.002]
[1761020716322,3.03180621,3882.2,3881.3,2.57640596]
[1761020716719,2.57593314,3882.1,3881.3,2.57640596]
[1761020716914,0.2333,3882.5,3881.2,0.002]
[1761020716915,1.728,3881.9,3881.2,0.002]
[1761020717137,1.728,3881.9,3881.2,0.33315704]
[1761020717465,1.728,3881.7,3881.2,0.002]
[1761020717617,0.4696,3881.6,3881.2,0.002]
[1761020718138,0.1288,3881.5,3881.2,0.002]
[1761020718671,0.5984,3881.5,3881.2,0.002]
[1761020719021,0.4696,3881.4,3881.2,0.002]
[1761020719835,0.4696,3882.0,3881.2,0.60295952]
[1761020720041,0.4696,3882.0,3881.3,2.57645634]
[1761020720243,1.728,3882.2,3881.4,2.57637586]
[1761020720536,1.728,3882.2,3881.2,3.17947372]
[1761020720537,1.728,3882.2,3881.5,2.60207453]
[1761020720759,0.80810556,3882.3,3881.5,2.60207453]
[1761020721066,0.80810556,3882.3,3881.6,3.431]
[1761020721236,3.38394675,3882.3,3881.6,3.431]
[1761020721437,2.53610556,3882.3,3881.6,3.431]
[1761020721641,2.57597439,3882.1,3881.6,3.431]
[1761020721847,1.728,3882.0,3881.6,3.431]
[1761020722022,1.728,3881.8,3881.2,0.002]
[1761020722367,1.27770556,3882.3,3881.4,2.57634265]
[1761020722536,1.27770556,3882.3,3881.5,2.57631462]
[1761020722733,1.728,3882.1,3881.2,0.50888]
[1761020722934,2.1976,3882.2,3881.4,2.57632743]
[1761020723160,0.4696,3882.2,3881.3,2.57645634]
[1761020723456,0.4696,3882.2,3881.5,6.00630498]
[1761020723846,0.4696,3882.2,3881.5,3.43]
[1761020724047,0.80810556,3882.3,3881.6,2.57621266]
[1761020724360,0.2333,3882.5,3881.6,0.50688]
[1761020724655,0.001,3882.6,3882.0,2.57597499]
[1761020724958,0.001,3882.6,3882.1,3.43]
[1761020725158,0.001,3882.6,3882.1,6.00592381]
[1761020725331,0.4706,3882.6,3882.1,6.00592381]
[1761020726341,0.4706,3882.6,3882.1,3.43]
[1761020726565,0.001,3882.2,3881.8,3.429]
[1761020726854,0.001,3882.2,3881.7,3.429]
[1761020727060,0.001,3882.2,3881.7,4.28715819]
[1761020727356,0.4706,3882.2,3881.7,3.429]
[1761020728055,0.001,3882.2,3881.8,2.5760713]
[1761020728228,0.001,3882.2,3881.7,3.429]
[1761020729061,0.001,3882.2,3881.7,6.00517617]
[1761020729229,0.001,3882.2,3881.7,3.429]
[1761020729433,0.001,3882.2,3881.8,0.60052518]
[1761020731248,0.001,3882.2,3881.9,3.08292644]
[1761020731453,0.001,3882.2,3882.0,0.128]
[1761020731626,0.001,3882.2,3881.8,0.60052518]
[1761020731963,0.001,3882.2,3881.8,3.17660271]
[1761020732144,0.001,3882.2,3881.9,0.93106564]
[1761020732352,0.001,3882.2,3882.0,2.60169339]
[1761020732944,0.001,3882.2,3882.0,0.02575991]
[1761020733758,0.001,3882.2,3881.9,3.50711082]
[1761020733759,0.001,3882.2,3881.9,0.93106564]
[1761020734345,0.001,3882.2,3881.7,6.13397666]
[1761020734556,0.4496,3882.2,3881.7,6.13397666]
[1761020735062,0.4496,3882.2,3881.8,2.57612182]
[1761020735765,0.001,3882.2,3881.8,2.57611374]
[1761020736080,0.4496,3882.2,3881.7,6.1339703]
[1761020736250,0.4496,3882.2,3881.7,7.05568123]
[1761020737268,0.4496,3882.2,3881.7,4.47951093]
[1761020737473,0.4496,3882.2,3881.7,3.5578]
[1761020737968,0.4496,3882.2,3881.7,6.1339812]
[1761020738770,0.4496,3882.2,3881.8,2.57609555]
[1761020738969,0.4496,3882.2,3881.7,3.5578]
[1761020739643,0.4496,3882.2,3881.7,6.1339752]
[1761020739843,0.4496,3882.2,3881.8,0.9217177]
[1761020741357,0.4496,3882.2,3881.7,3.5578]
[1761020742064,0.4496,3882.2,3881.7,6.13398182]
[1761020742265,0.4496,3882.2,3881.8,2.57606877]
[1761020742575,0.001,3882.2,3881.9,2.57604957]
[1761020743076,0.001,3882.2,3882.0,3.426]
[1761020743540,0.001,3882.2,3882.0,3.74496172]
[1761020743743,0.001,3882.2,3882.1,2.5759254]
[1761020743988,0.001,3882.2,3882.1,3.0828054]
[1761020744143,0.001,3882.2,3882.1,3.6748054]
[1761020744337,0.001,3882.6,3882.5,3.08254001]
[1761020744563,0.001,3882.6,3882.5,7.07236846]
[1761020744766,0.001,3882.6,3882.5,7.66436846]
[1761020748177,0.001,3882.6,3882.5,3.77636846]
[1761020748352,0.001,3882.6,3882.5,2.70366001]
[1761020748671,0.001,3882.6,3882.5,6.12666001]
[1761020748842,0.001,3882.6,3882.5,6.59066001]
[1761020749049,0.001,3882.6,3882.5,7.09754001]